bitfinex-derivatives/quotes_BNBF0:USTF0_20250211
["timestamp","ask_amount","ask_price","bid_price","bid_amount"]
[1739318011564,2.60208393,642.83,641.82,0.31161384]
[1739318011764,2.60208393,642.82,641.82,0.31161384]
[1739318011957,2.60208393,642.81,641.82,0.31161384]
[1739318012164,2.60208393,642.8,641.82,0.31161384]
[1739318012365,2.60208393,642.79,641.82,0.31161384]
[1739318012565,3.56751115,642.78,641.82,0.31161384]
[1739318012865,2.60208393,642.77,641.82,0.31161384]
[1739318013066,1.34783428,642.76,641.82,0.31161384]
[1739318013261,1.34783428,642.75,641.82,0.31161384]
[1739318013462,0.91040218,643.0,641.82,0.31161384]
[1739318013663,2.8884064,642.99,641.82,0.31161384]
[1739318013866,2.60243502,642.98,641.82,0.31161384]
[1739318014068,2.60243502,642.97,641.82,0.31161384]
[1739318014263,2.60243502,642.96,641.82,0.31161384]
[1739318014469,2.60243502,642.95,641.82,0.31161384]
[1739318014668,2.60243502,642.94,641.82,0.31161384]
[1739318014865,2.60243502,642.93,641.82,0.31161384]
[1739318015062,1.34803402,642.92,641.82,0.31161384]
[1739318015264,2.60261853,642.91,641.82,0.31161384]
[1739318015468,2.60261853,642.9,641.82,0.31161384]
[1739318015765,1.34803402,642.89,641.82,0.31161384]
[1739318015971,1.34803402,642.88,641.82,0.31161384]
[1739318016170,1.34803402,642.87,641.82,0.31161384]
[1739318016367,2.60330886,642.86,641.82,0.31161384]
[1739318016572,3.56969214,642.85,641.82,0.31161384]
[1739318016871,2.60330886,642.84,641.82,0.31161384]
[1739318017064,2.60330886,642.83,641.82,0.31161384]
[1739318017269,2.60330886,642.82,641.82,0.31161384]
[1739318017571,2.60330886,642.81,641.82,0.31161384]
[1739318017766,2.60406542,642.8,641.82,0.31161384]
[1739318017969,2.60406542,642.79,641.82,0.31161384]
[1739318018266,2.60406542,642.78,641.82,0.31161384]
[1739318018465,2.60406542,642.77,641.82,0.31161384]
[1739318018671,2.60406542,642.76,641.82,0.31161384]
[1739318018972,1.34803402,642.75,641.82,0.31161384]
[1739318019167,1.34803402,642.74,641.82,0.31161384]
[1739318019371,1.34803402,642.73,641.82,0.31161384]
[1739318019571,1.34803402,642.72,641.82,0.31161384]
[1739318019773,0.91050336,643.06,641.82,0.31161384]
[1739318019973,2.60799203,643.05,641.82,0.31161384]
[1739318020175,2.60799203,643.04,641.82,0.31161384]
[1739318020368,2.60799203,643.03,641.82,0.31161384]
[1739318020569,2.60799203,643.02,641.82,0.31161384]
[1739318020771,2.60799203,643.01,641.82,0.31161384]
[1739318020972,2.60799203,643.0,641.82,0.31161384]
[1739318021173,3.57597266,642.99,641.82,0.31161384]
[1739318021369,2.60799203,642.98,641.82,0.31161384]
[1739318021575,2.61069977,642.97,641.82,0.31161384]
[1739318021774,2.61069977,642.96,641.82,0.31161384]
[1739318021975,2.61067475,642.95,641.82,0.31161384]
[1739318022175,2.61067475,642.94,641.82,0.31161384]
[1739318022375,2.61067475,642.93,641.82,0.31161384]
[1739318022575,2.61067475,642.92,641.82,0.31161384]
[1739318022772,2.61067475,642.91,641.82,0.31161384]
[1739318022972,2.61067475,642.9,641.82,0.31161384]
[1739318023173,2.61067475,642.89,641.82,0.31161384]
[1739318023370,2.61067475,642.88,641.82,0.31161384]
[1739318023577,1.35230684,642.87,641.82,0.31161384]
[1739318023776,2.61225922,642.86,641.82,0.31161384]
[1739318023975,2.61225922,642.85,641.82,0.31161384]
[1739318024170,2.61225922,642.84,641.82,0.31161384]
[1739318024375,1.35230684,642.83,641.82,0.31161384]
[1739318024677,0.96798063,642.85,641.82,0.31161384]
[1739318024877,1.35495069,642.84,641.82,0.31161384]
[1739318025280,0.91440682,643.07,641.82,0.31161384]
[1739318025578,2.32728091,643.06,641.82,0.31161384]
[1739318025777,1.356072,643.05,641.82,0.31161384]
[1739318025978,1.356072,643.04,641.82,0.31161384]
[1739318026171,1.356072,643.03,641.82,0.31161384]
[1739318026376,1.356072,643.02,641.82,0.31161384]
[1739318026571,1.356072,643.01,641.82,0.31161384]
[1739318026776,1.356072,643.0,641.82,0.31161384]
[1739318026977,1.356072,642.99,641.82,0.31161384]
[1739318027173,1.356072,642.98,641.82,0.31161384]
[1739318027476,2.32723571,642.97,641.82,0.31161384]
[1739318027678,1.356072,642.96,641.82,0.31161384]
[1739318027878,1.356072,642.95,641.82,0.31161384]
[1739318028179,1.356072,642.94,641.82,0.31161384]
[1739318028378,1.356072,642.93,641.82,0.31161384]
[1739318028581,1.356072,642.92,641.82,0.31161384]
[1739318028776,1.356072,642.91,641.82,0.31161384]
[1739318028977,1.356072,642.9,641.82,0.31161384]
[1739318029180,1.356072,642.89,641.82,0.31161384]
[1739318029381,1.356072,642.88,641.82,0.31161384]
[1739318029580,1.356072,642.87,641.82,0.31161384]
[1739318029778,2.32723571,642.86,641.82,0.31161384]
[1739318029981,1.36231067,642.85,641.82,0.31161384]
[1739318030180,1.36231067,642.84,641.82,0.31161384]
[1739318030383,0.97116371,642.84,641.82,0.31161384]
[1739318030583,1.3644327,642.83,641.82,0.31161384]
[1739318030780,2.33559641,642.82,641.82,0.31161384]
[1739318030978,1.3644327,642.81,641.8,1.62502919]
[1739318031178,1.3644327,642.8,641.8,1.62502919]
[1739318031382,2.33559641,642.79,641.8,1.62502919]
[1739318031584,1.3644327,642.78,641.8,1.62502919]
[1739318031781,1.3644327,642.77,641.8,1.62502919]
[1739318031982,1.3644327,642.76,641.8,1.62502919]
[1739318032287,2.33819105,642.75,641.8,1.62502919]
[1739318032480,1.36702734,642.74,641.8,1.62502919]
[1739318032685,3.61064321,642.73,641.8,1.62502919]
[1739318032882,2.6394795,642.72,641.8,1.62502919]
[1739318033086,2.6394795,642.71,641.8,1.62502919]
[1739318033381,2.6394795,642.7,641.8,1.62502919]
[1739318033581,2.6394795,642.69,641.8,1.62502919]
[1739318033782,2.6394795,642.68,641.8,1.62502919]
[1739318033980,2.6394795,642.67,641.8,1.62502919]
[1739318034184,2.6394795,642.66,641.8,1.62502919]
[1739318034384,2.6394795,642.65,641.8,1.62502919]
[1739318034583,2.6394795,642.64,641.8,1.62502919]
[1739318034788,2.6394795,642.63,641.8,1.62502919]
[1739318034989,2.6394795,642.62,641.8,1.62502919]
[1739318035190,2.6394795,642.61,641.8,1.62502919]
[1739318035487,2.6394795,642.6,641.8,1.62502919]
[1739318035682,2.6394795,642.59,641.8,1.62502919]
[1739318035882,2.6394795,642.58,641.8,1.62502919]
[1739318036187,3.61064321,642.57,641.8,1.62502919]
[1739318036383,2.64029244,642.56,641.8,1.62502919]
[1739318036582,3.61145615,642.55,641.8,1.62502919]
[1739318036784,2.64029244,642.54,641.8,1.62502919]
[1739318036983,1.36702734,642.53,641.8,1.62502919]
[1739318037183,1.36702734,642.52,641.8,1.62502919]
[1739318037489,0.92410568,642.82,641.8,1.62502919]
[1739318037687,3.62208703,642.81,641.8,1.62502919]
[1739318037988,2.64195527,642.8,641.8,1.62502919]
[1739318038188,2.64195527,642.79,641.8,1.62502919]
[1739318038490,2.64200954,642.78,641.8,1.62502919]
[1739318038688,2.64200954,642.77,641.8,1.62502919]
[1739318038889,2.64209386,642.76,641.8,1.62502919]
[1739318039089,2.64209386,642.75,641.8,1.62502919]
[1739318039283,3.62222562,642.74,641.8,1.62502919]
[1739318039487,2.64209386,642.73,641.8,1.62502919]
[1739318039688,2.64209386,642.72,641.8,1.62502919]
[1739318039883,2.64209386,642.71,641.8,1.62502919]
[1739318040091,2.64209386,642.7,641.8,1.62502919]
[1739318040286,2.64209386,642.69,641.8,1.62502919]
[1739318040489,2.6424924,642.68,641.8,1.62502919]
[1739318040686,2.6424924,642.67,641.8,1.62502919]
[1739318040889,2.6424924,642.66,641.8,1.62502919]
[1739318041088,2.6424924,642.65,641.8,1.62502919]
[1739318041384,2.6424924,642.64,641.8,1.62502919]
[1739318041588,2.6424924,642.63,641.8,1.62502919]
[1739318041885,2.6424924,642.62,641.8,1.62502919]
[1739318042094,2.6424924,642.61,641.8,1.62502919]
[1739318042287,2.6424924,642.6,641.8,1.62502919]
[1739318042487,3.62262416,642.59,641.8,1.62502919]
[1739318042686,2.6424924,642.58,641.8,1.62502919]
[1739318042891,2.6424924,642.57,641.8,1.62502919]
[1739318043086,2.6424924,642.56,641.8,1.62502919]
[1739318043288,2.6424924,642.55,641.8,1.62502919]
[1739318043490,1.36876969,642.54,641.8,1.62502919]
[1739318043685,1.36876969,642.53,641.8,1.62502919]
[1739318043888,2.34890145,642.52,641.8,1.62502919]
[1739318044086,1.36876969,642.51,641.8,1.62502919]
[1739318044287,0.98013176,642.52,641.8,1.62502919]
[1739318044487,1.36987505,642.51,641.8,1.62502919]
[1739318044686,1.36987505,642.5,641.81,1.15317737]
[1739318044887,0.9244246,642.74,641.81,1.15317737]
[1739318045192,4.55019517,642.73,641.81,1.15317737]
[1739318045385,2.64464503,642.72,641.81,1.15317737]
[1739318045587,2.64464503,642.71,641.81,1.15317737]
[1739318045785,2.64464503,642.7,641.81,1.15317737]
[1739318045989,2.64514039,642.69,641.81,1.15317737]
[1739318046287,2.64514039,642.68,641.81,1.15317737]
[1739318046491,2.64696239,642.67,641.81,1.15317737]
[1739318046692,1.3711066,642.66,641.81,1.15317737]
[1739318046894,1.3711066,642.65,641.88,1.15317737]
[1739318047193,1.3711066,642.64,641.88,1.15317737]
[1739318047491,1.3711066,642.63,641.88,1.15317737]
[1739318047692,1.3711066,642.62,641.88,1.15317737]
[1739318047887,1.3711066,642.61,641.88,1.15317737]
[1739318048192,1.37274924,642.6,641.88,1.15317737]
[1739318048391,1.37274924,642.59,641.88,1.15317737]
[1739318048591,1.37284049,642.58,641.88,1.15317737]
[1739318048886,1.37284049,642.57,641.88,1.15317737]
[1739318049092,1.37284049,642.56,641.88,1.15317737]
[1739318049293,1.37284049,642.55,641.88,1.15317737]
[1739318049491,1.37284049,642.54,641.88,1.15317737]
[1739318049689,2.3560936,642.53,641.88,1.15317737]
[1739318049988,1.37284049,642.52,641.88,1.15317737]
[1739318050193,2.35797441,642.51,641.88,1.15317737]
[1739318050493,1.3747213,642.5,641.88,1.15317737]
[1739318050689,1.3747213,642.49,641.88,1.15317737]
[1739318050894,1.3747213,642.48,641.88,1.15317737]
[1739318051089,1.37513696,642.47,641.88,1.15317737]
[1739318051290,1.37513696,642.46,641.88,1.15317737]
[1739318051490,1.37513696,642.45,641.84,1.15317737]
[1739318051694,0.98325311,642.46,641.84,1.15317737]
[1739318051893,2.35846913,642.45,641.84,1.15317737]
[1739318052090,1.3754433,642.44,641.84,1.15317737]
[1739318052288,0.98325311,642.45,641.84,1.15317737]
[1739318052694,0.92595281,642.72,641.84,1.15317737]
[1739318052889,3.64054451,642.71,641.84,1.15317737]
[1739318053089,2.65543017,642.7,641.84,1.15317737]
[1739318053293,2.65543017,642.69,641.83,2.77863667]
[1739318053489,2.65543017,642.68,641.83,2.77863667]
[1739318053793,2.65543017,642.67,641.83,2.77863667]
[1739318053997,3.64054451,642.66,641.83,2.77863667]
[1739318054296,2.65543017,642.65,641.83,2.77863667]
[1739318054497,2.65543017,642.64,641.83,2.77863667]
[1739318054691,2.65543017,642.63,641.83,2.77863667]
[1739318054890,0.98511434,642.64,641.83,2.77863667]
[1739318054891,2.65567355,642.62,641.83,2.77863667]
[1739318055096,3.64078789,642.61,641.83,2.77863667]
[1739318055297,2.65567355,642.6,641.85,1.15317737]
[1739318055492,2.65567355,642.59,641.85,1.15317737]
[1739318055796,3.64078789,642.58,641.85,1.15317737]
[1739318055998,2.65567355,642.57,641.85,1.15317737]
[1739318056201,2.65567355,642.56,641.85,1.15317737]
[1739318056399,2.65586041,642.55,641.85,1.15317737]
[1739318056697,2.65586041,642.54,641.86,0.31159442]
[1739318056898,3.64097475,642.53,641.86,0.31159442]
[1739318057199,2.65586041,642.52,641.86,0.31159442]
[1739318057399,2.65586041,642.51,641.96,1.15317737]
[1739318057600,1.37579826,642.5,641.97,0.31154103]
[1739318057801,1.37579826,642.49,641.97,0.31154103]
[1739318058000,0.98511434,642.5,641.97,0.31154103]
[1739318058001,1.37579826,642.48,641.97,0.31154103]
[1739318058200,1.37579826,642.47,641.97,0.31154103]
[1739318058400,1.37579826,642.46,641.97,0.31154103]
[1739318058603,0.98511434,642.47,641.97,0.31154103]
[1739318058799,0.92901253,642.69,641.97,0.31154103]
[1739318059002,2.65600427,642.68,641.97,0.31154103]
[1739318059302,2.65600427,642.68,641.97,1.4647184]
[1739318059303,2.65600427,642.67,641.97,1.4647184]
[1739318059505,2.65600427,642.66,641.97,1.4647184]
[1739318059701,3.64132194,642.65,641.97,1.4647184]
[1739318059897,2.65600427,642.64,641.97,1.4647184]
[1739318060097,2.65600427,642.63,641.97,1.4647184]
[1739318060296,2.65600427,642.62,641.97,1.4647184]
[1739318060501,2.65600427,642.61,641.97,1.4647184]
[1739318060803,2.65600427,642.6,641.97,1.4647184]
[1739318060995,2.65600427,642.59,641.97,1.4647184]
[1739318061200,2.65600427,642.58,641.97,1.4647184]
[1739318061398,2.65600427,642.57,641.97,1.4647184]
[1739318061601,1.37578483,642.56,641.97,1.4647184]
[1739318061802,1.37578483,642.55,641.97,1.4647184]
[1739318062002,1.37578483,642.54,641.97,1.4647184]
[1739318062197,1.37578483,642.53,641.97,1.4647184]
[1739318062402,1.37578483,642.52,642.05,1.15317737]
[1739318062602,0.98531767,642.55,642.06,0.31149736]
[1739318062899,1.37568665,642.54,642.06,0.31149736]
[1739318063103,1.37568665,642.53,642.06,0.31149736]
[1739318063304,0.98531767,642.54,642.06,0.31149736]
[1739318063500,2.36098401,642.53,642.06,0.31149736]
[1739318063703,1.37566437,642.52,642.06,0.31149736]
[1739318063903,0.98531767,642.53,642.06,0.31149736]
[1739318064100,1.37567057,642.52,642.06,0.31149736]
[1739318064304,0.9290373,642.76,642.06,0.31149736]
[1739318064502,2.65608867,642.75,642.06,0.31149736]
[1739318064705,3.64142646,642.74,642.06,1.46467473]
[1739318064907,2.65608932,642.73,642.06,1.46467473]
[1739318065107,2.65608932,642.72,642.06,1.46467473]
[1739318065308,2.65608932,642.71,642.06,1.46467473]
[1739318065508,2.65608932,642.7,642.06,1.46467473]
[1739318065807,2.65608932,642.69,642.06,1.46467473]
[1739318066009,2.65608932,642.68,642.06,1.46467473]
[1739318066201,2.65608932,642.67,642.06,1.46467473]
[1739318066402,2.65757291,642.66,642.06,1.46467473]
[1739318066603,2.65757291,642.65,642.06,1.46467473]
[1739318066808,2.65757291,642.64,642.06,1.46467473]
[1739318067007,2.65757291,642.63,642.06,1.46467473]
[1739318067203,2.65757291,642.62,642.06,1.46467473]
[1739318067404,2.65757291,642.61,642.06,1.46467473]
[1739318067705,2.65757291,642.6,642.06,1.46467473]
[1739318067910,2.65757291,642.59,642.06,1.46467473]
[1739318068109,2.65757291,642.58,642.06,1.46467473]
[1739318068309,2.65785388,642.57,642.08,1.15317737]
[1739318068510,1.3766059,642.56,642.09,0.31148281]
[1739318068704,2.36194304,642.55,642.09,0.31148281]
[1739318068903,1.3769248,642.54,642.09,0.31148281]
[1739318069205,1.3769248,642.53,642.09,0.31148281]
[1739318069510,1.3769248,642.52,642.09,0.31148281]
[1739318069705,1.3769248,642.51,642.09,0.31148281]
[1739318069904,0.98533714,642.53,642.09,0.31148281]
[1739318070106,2.36238502,642.52,642.09,0.31148281]
[1739318070304,1.37704788,642.51,642.09,0.31148281]
[1739318070508,0.92965939,642.81,642.09,0.31148281]
[1739318070704,2.65867804,642.8,642.09,0.31148281]
[1739318070909,7.20655636,643.65,642.09,0.31148281]
[1739318071104,0.92997248,642.85,642.09,0.31148281]
[1739318071310,2.65853628,642.84,642.09,0.31148281]
[1739318071605,2.65862215,642.83,642.09,0.31148281]
[1739318071809,2.65862215,642.82,642.09,0.31148281]
[1739318072010,2.65862215,642.81,642.09,0.31148281]
[1739318072213,3.6448457,642.8,642.09,0.31148281]
[1739318072410,2.65862215,642.79,642.09,0.31148281]
[1739318072611,2.65862215,642.78,642.09,0.31148281]
[1739318072806,2.65862215,642.77,642.09,0.31148281]
[1739318073006,2.65862215,642.76,642.09,0.31148281]
[1739318073210,2.65862215,642.75,642.09,0.31148281]
[1739318073407,2.65862215,642.74,642.09,0.31148281]
[1739318073711,3.6448457,642.73,642.09,0.31148281]
[1739318073912,2.65862215,642.72,642.09,0.31148281]
[1739318074105,2.65862215,642.71,642.09,0.31148281]
[1739318074306,2.65862215,642.7,642.09,0.31148281]
[1739318074507,2.65862215,642.69,642.09,0.31148281]
[1739318074710,3.6448457,642.68,642.09,0.31148281]
[1739318074908,2.65862215,642.67,642.09,0.31148281]
[1739318075107,1.37720527,642.66,642.09,0.31148281]
[1739318075310,1.37720527,642.65,642.09,0.31148281]
[1739318075507,1.37720527,642.64,642.09,0.31148281]
[1739318075707,1.37720527,642.63,642.09,0.31148281]
[1739318076014,2.36342882,642.62,642.09,0.31148281]
[1739318076212,1.37720527,642.61,642.09,0.31148281]
[1739318076412,1.37720527,642.6,642.09,0.31148281]
[1739318076612,0.98622355,642.62,642.09,0.31148281]
[1739318076810,1.37679881,642.61,642.09,0.31148281]
[1739318077115,1.37679881,642.6,642.09,0.31148281]
[1739318077311,0.98597905,642.6,642.09,0.31148281]
[1739318077815,1.37671408,642.59,642.09,0.31148281]
[1739318078015,1.37671408,642.58,642.09,0.31148281]
[1739318078215,1.37671408,642.57,642.09,0.31148281]
[1739318078414,1.37671408,642.56,642.09,0.31148281]
[1739318078615,1.37671408,642.55,642.09,0.31148281]
[1739318078811,2.36275356,642.54,642.09,0.31148281]
[1739318079115,0.98603948,642.54,642.09,0.31148281]
[1739318079515,0.98603948,642.53,642.09,0.31148281]
[1739318080511,0.98603948,642.52,642.09,0.31148281]
[1739318081113,0.92974526,642.97,642.09,0.31148281]
[1739318081319,2.65781852,642.96,642.09,0.31148281]
[1739318081511,2.65781852,642.95,642.09,0.31148281]
[1739318081714,2.65781852,642.94,642.09,0.31148281]
[1739318081915,2.65781852,642.93,642.09,0.31148281]
[1739318082112,2.65781852,642.92,642.09,0.31148281]
[1739318082314,2.65781852,642.91,642.09,0.31148281]
[1739318082514,2.65781852,642.9,642.09,0.31148281]
[1739318082712,2.65781852,642.89,642.09,0.31148281]
[1739318082911,0.92972816,642.78,642.09,0.31148281]
[1739318083112,0.92972816,642.61,642.09,0.31148281]
[1739318083317,0.92972816,642.59,642.09,0.31148281]
[1739318083513,0.92998725,642.55,642.09,0.31148281]
[1739318083712,2.65831999,642.54,642.09,0.31148281]
[1739318083914,3.58830724,642.53,642.09,0.31148281]
[1739318084116,3.58830724,642.52,642.09,0.31148281]
[1739318084313,3.64431198,642.51,642.09,0.31148281]
[1739318084513,2.65831999,642.5,642.09,0.31148281]
[1739318084716,2.65831999,642.49,642.09,0.31148281]
[1739318084916,2.65831999,642.48,642.09,0.31148281]
[1739318085116,2.65831999,642.47,642.09,0.31148281]
[1739318085318,2.65831999,642.46,642.09,0.31148281]
[1739318085512,2.65831999,642.45,642.09,0.31148281]
[1739318085713,2.65831999,642.44,642.09,0.31148281]
[1739318085912,2.65831999,642.43,642.09,0.31148281]
[1739318086114,2.65831999,642.42,642.09,0.31148281]
[1739318086313,2.65831999,642.41,642.09,0.31148281]
[1739318086519,2.65831999,642.4,642.09,0.31148281]
[1739318086720,2.65831999,642.39,642.09,0.31148281]
[1739318087020,2.65831999,642.38,642.09,0.31148281]
[1739318087321,2.65831999,642.37,642.09,0.31148281]
[1739318087518,2.65831999,642.36,642.09,0.31148281]
[1739318087718,2.65831999,642.35,642.09,0.31148281]
[1739318087918,2.65831999,642.34,642.09,0.31148281]
[1739318088119,2.65831999,642.33,642.09,0.31148281]
[1739318088319,1.37695258,642.32,642.09,0.31148281]
[1739318088520,1.37695258,642.31,642.09,0.31148281]
[1739318088718,1.37695258,642.3,642.09,0.31148281]
[1739318089024,0.98599199,642.31,642.09,0.31148281]
[1739318089414,0.92965704,642.63,642.09,0.31148281]
[1739318089619,3.58659284,642.62,642.09,0.31148281]
[1739318089922,2.65694797,642.61,642.09,0.31148281]
[1739318090117,2.65694797,642.6,642.09,0.31148281]
[1739318090321,2.65694797,642.59,642.09,0.31148281]
[1739318090521,2.65694797,642.58,642.09,0.31148281]
[1739318090723,2.65694797,642.57,642.09,0.31148281]
[1739318090922,2.65694797,642.56,642.09,0.31148281]
[1739318091123,3.64275689,642.55,642.09,0.31148281]
[1739318091326,2.65694797,642.54,642.09,0.31148281]
[1739318091627,3.64275689,642.53,642.09,0.31148281]
[1739318091827,2.65694797,642.52,642.09,0.31148281]
[1739318092022,2.65694797,642.51,642.09,0.31148281]
[1739318092227,2.65694797,642.5,642.09,0.31148281]
[1739318092429,2.65694797,642.49,642.09,0.31148281]
[1739318092630,2.65694797,642.48,642.09,0.31148281]
[1739318092930,3.64275689,642.47,642.09,0.31148281]
[1739318093125,3.64275689,642.46,642.09,0.31148281]
[1739318093330,2.65694797,642.45,642.09,0.31148281]
[1739318093524,2.65694797,642.44,642.09,0.31148281]
[1739318093729,2.65694797,642.43,642.09,0.31148281]
[1739318093926,2.65694797,642.42,642.09,0.31148281]
[1739318094125,2.65694797,642.41,642.09,0.31148281]
[1739318094327,3.64275689,642.4,642.09,0.31148281]
[1739318094529,2.65694797,642.39,642.09,0.31148281]
[1739318094724,2.65694797,642.38,642.09,0.31148281]
[1739318094926,3.64275689,642.37,642.09,0.31148281]
[1739318095126,1.37624223,642.36,642.09,0.31148281]
[1739318095325,1.37624223,642.35,642.09,0.31148281]
[1739318095529,1.37624223,642.34,642.09,0.31148281]
[1739318095727,2.36153552,642.33,642.09,0.31148281]
[1739318095925,1.3757266,642.32,642.09,0.31148281]
[1739318096128,1.3757266,642.31,642.09,0.31148281]
[1739318096431,1.3757266,642.3,642.09,0.31148281]
[1739318096631,1.3757266,642.29,642.09,0.31148281]
[1739318096824,1.3757266,642.28,642.09,0.31148281]
[1739318097028,1.3757266,642.27,642.09,0.31148281]
[1739318097226,2.36153552,642.26,642.09,0.31148281]
[1739318097526,1.3757266,642.25,642.09,0.31148281]
[1739318097728,0.98580892,642.26,642.09,0.31148281]
[1739318097729,2.36153552,642.24,642.09,0.31148281]
[1739318097931,1.37549136,642.23,642.09,0.31148281]
[1739318098126,0.98580892,642.24,642.09,0.31148281]
[1739318098333,0.98580892,642.22,642.09,0.31148281]
[1739318098831,0.92915539,642.62,642.09,0.31148281]
[1739318099027,3.58425864,642.61,642.09,0.31148281]
[1739318099226,2.65510325,642.6,642.09,0.31148281]
[1739318099430,2.65510325,642.59,642.09,0.31148281]
[1739318099626,2.65510325,642.58,642.09,0.31148281]
[1739318099832,2.65510325,642.57,642.09,0.31148281]
[1739318100028,3.63998358,642.56,642.09,0.31148281]
[1739318100230,1.37526356,642.55,642.09,0.31148281]
[1739318100430,0.92874154,642.52,642.09,0.31148281]
[1739318100632,0.92874154,642.5,642.09,0.31148281]
[1739318100831,2.65488383,642.49,642.09,0.31148281]
[1739318101131,0.92874154,642.32,642.09,0.31148281]
[1739318101334,3.63976416,642.31,642.09,0.31148281]
[1739318101534,2.65488383,642.3,642.09,0.31148281]
[1739318101736,2.65394237,642.29,642.09,0.31148281]
[1739318101931,2.65394237,642.28,642.09,0.31148281]
[1739318102129,2.65394237,642.27,642.09,0.31148281]
[1739318102333,0.92874154,642.15,642.09,0.31148281]
[1739318102528,3.58268391,642.14,642.09,0.31148281]
[1739318102734,2.65394237,642.13,642.09,0.31148281]
[1739318102933,3.6388227,642.12,642.09,0.31148281]
[1739318103129,2.65394237,642.11,642.09,0.31148281]
[1739318103333,2.65394237,642.1,642.09,0.31148281]
[1739318103533,2.65394237,642.1,635.21,2.36206827]
[1739318103735,0.92661663,642.05,640.27,0.31236821]
[1739318103933,2.65394237,642.04,640.27,0.31236821]
[1739318104132,2.65394237,642.03,640.27,0.31236821]
[1739318104336,3.5760997,642.02,640.27,0.31236821]
[1739318104532,2.64948307,642.01,640.27,0.31236821]
[1739318104731,2.64948307,642.0,640.27,0.31236821]
[1739318104937,2.64948307,641.99,640.27,0.31236821]
[1739318105133,2.64948307,641.98,640.27,0.31236821]
[1739318105333,3.6343634,641.97,640.27,0.31236821]
[1739318105536,2.64948307,641.96,640.27,0.31236821]
[1739318105835,2.64367532,641.95,640.27,0.31236821]
[1739318106032,2.64367532,641.94,640.27,0.31236821]
[1739318106236,2.64263204,641.93,640.27,0.31236821]
[1739318106435,1.3698628,641.92,640.27,0.31236821]
[1739318106735,1.3698628,641.91,640.27,0.31236821]
[1739318106934,0.98488033,641.92,640.27,0.31236821]
[1739318107336,1.36667493,641.91,640.27,0.31236821]
[1739318107538,1.36658168,641.9,640.27,0.31236821]
[1739318107745,1.36658168,641.89,640.46,1.15349962]
[1739318108044,1.36658168,641.88,640.48,0.3122658]
[1739318108245,0.9246139,642.19,640.48,0.3122658]
[1739318108439,2.63709802,642.18,640.48,0.3122658]
[1739318108641,2.63709802,642.17,640.48,0.3122658]
[1739318108843,2.63709802,642.16,640.48,0.3122658]
[1739318109144,2.63709802,642.15,640.48,0.3122658]
[1739318109343,2.63709802,642.14,640.48,0.3122658]
[1739318109546,2.63709802,642.13,640.48,0.3122658]
[1739318109746,2.63709802,642.12,640.49,1.62770212]
[1739318109952,2.63709802,642.11,640.49,1.62770212]
[1739318110145,3.61581756,642.1,640.51,0.31225117]
[1739318110342,2.63709802,642.09,640.51,0.31225117]
[1739318110542,2.63709802,642.08,640.51,0.31225117]
[1739318110846,2.63709802,642.07,640.51,0.31225117]
[1739318111049,2.63709802,642.06,640.51,0.31225117]
[1739318111346,1.36588833,642.05,640.51,0.31225117]
[1739318111543,1.36588833,642.04,640.51,0.31225117]
[1739318111744,1.36588833,642.03,640.51,0.31225117]
[1739318111945,1.36588833,642.02,640.51,0.31225117]
[1739318112146,0.97871954,642.02,640.51,0.31225117]
[1739318112647,0.97871954,642.32,640.51,0.31225117]
[1739318112846,2.6335517,642.31,640.51,0.31225117]
[1739318113045,2.6335517,642.3,640.51,0.31225117]
[1739318113241,2.6335517,642.29,640.51,0.31225117]
[1739318113444,2.6335517,642.28,640.51,0.31225117]
[1739318113647,3.61227124,642.27,640.51,0.31225117]
[1739318113849,2.6335517,642.26,640.51,0.31225117]
[1739318114055,2.6335517,642.25,640.51,0.31225117]
[1739318114350,2.63246449,642.24,640.51,0.31225117]
[1739318114545,2.63246449,642.23,640.51,0.31225117]
[1739318114746,2.63246449,642.22,640.51,0.31225117]
[1739318114947,3.61118403,642.21,640.51,0.31225117]
[1739318115149,2.63246449,642.2,640.51,0.31225117]
[1739318115346,2.63246449,642.19,640.51,0.31225117]
[1739318115544,2.34220115,642.18,640.51,0.31225117]
[1739318115744,1.36348161,642.17,640.51,0.31225117]
[1739318115945,0.97871954,642.18,640.51,0.31225117]
[1739318116343,0.97871954,642.48,640.51,0.31225117]
[1739318116649,2.63162334,642.47,640.51,0.31225117]
[1739318116849,2.63162334,642.46,640.51,0.31225117]
[1739318117042,3.61034288,642.45,640.51,0.31225117]
[1739318117245,2.63162334,642.44,640.6,1.15349962]
[1739318117552,2.63162334,642.43,640.62,0.31219755]
[1739318117751,2.63162334,642.42,640.62,0.31219755]
[1739318117951,2.63162334,642.41,640.62,0.31219755]
[1739318118151,2.63162334,642.4,640.62,0.31219755]
[1739318118352,3.61034288,642.39,640.62,0.31219755]
[1739318118552,2.63153211,642.38,640.62,0.31219755]
[1739318118751,2.63153211,642.37,640.62,0.31219755]
[1739318118948,2.63153211,642.36,640.62,0.31219755]
[1739318119149,2.63153211,642.35,640.62,0.31219755]
[1739318119347,3.61025165,642.34,640.62,0.31219755]
[1739318119553,2.63153211,642.33,640.62,0.31219755]
[1739318119753,3.61025165,642.32,640.62,0.31219755]
[1739318119954,2.63153211,642.31,640.62,0.31219755]
[1739318120154,2.63170763,642.3,640.62,0.31219755]